Body name,Directorate,Service Area Categorisation,Supplier Name,Date,Net Amount,Purpose of Spend,Procurement Classification: ProClass Label
Solihull MBC,Managed Growth and Communities,Highways & Transport Services,Acocks Green SSt,10/08/2017,4.30,Car Allowances: Officers,261600 - Human Resources - Travel & Subsistence
Solihull MBC,Managed Growth and Communities,Highways & Transport Services,Acocks Green SSt,09/08/2017,4.30,Car Allowances: Officers,261600 - Human Resources - Travel & Subsistence
Solihull MBC,Managed Growth and Communities,Highways & Transport Services,Acocks Green SSt,30/08/2017,4.30,Car Allowances: Officers,261600 - Human Resources - Travel & Subsistence
Solihull MBC,Adult Social Care,Adult Social Care,Aldi 11 772,25/09/2017,13.12,Purchase Card Statement Summary,111200 - Catering - Food & Beverages
Solihull MBC,Adult Social Care,Adult Social Care,Aldi 11 772,25/09/2017,19.88,Purchase Card Statement Summary,111200 - Catering - Food & Beverages
Solihull MBC,Adult Social Care,Adult Social Care,Aldi 11 772,25/09/2017,53.53,Purchase Card Statement Summary,111200 - Catering - Food & Beverages
Solihull MBC,Adult Social Care,Adult Social Care,Aldi 11 772,25/09/2017,58.53,Purchase Card Statement Summary,111200 - Catering - Food & Beverages
Solihull MBC,Adult Social Care,Adult Social Care,Aldi 11 772,25/09/2017,95.68,Purchase Card Statement Summary,111200 - Catering - Food & Beverages
Solihull MBC,Adult Social Care,Adult Social Care,Aldi 49 772,25/09/2017,-90.78,Purchase Card Statement Summary,111200 - Catering - Food & Beverages
Solihull MBC,Adult Social Care,Adult Social Care,Aldi 49 772,25/09/2017,19.49,Purchase Card Statement Summary,111200 - Catering - Food & Beverages
Solihull MBC,Adult Social Care,Adult Social Care,Aldi 49 772,25/09/2017,90.78,Purchase Card Statement Summary,111200 - Catering - Food & Beverages
Solihull MBC,Adult Social Care,Adult Social Care,Aldi 49 772,25/09/2017,90.78,Purchase Card Statement Summary,111200 - Catering - Food & Beverages
Solihull MBC,Adult Social Care,Adult Social Care,Aldi 49 772,25/09/2017,98.92,Purchase Card Statement Summary,111200 - Catering - Food & Beverages
Solihull MBC,Adult Social Care,Adult Social Care,Aldi 49 772,25/09/2017,116.19,Purchase Card Statement Summary,111200 - Catering - Food & Beverages
Solihull MBC,Adult Social Care,Adult Social Care,Aldi 49 772,25/09/2017,151.08,Purchase Card Statement Summary,111200 - Catering - Food & Beverages
Solihull MBC,Children's Services & Skills,Children & Education Services,Alligator Storage Garr,25/09/2017,74.00,Purchase Card Statement Summary,192300 - Facilities & Management Services - Storage
Solihull MBC,Resources,Central Services to the Public,Amazon Prime,25/09/2017,-7.99,Purchase Card Statement Summary,161000 - Domestic Goods - Commercial
Solihull MBC,Children's Services - DSG Central.,Children & Education Services,Amazon Prime,25/09/2017,7.99,Purchase Card Statement Summary,161000 - Domestic Goods - Commercial
Solihull MBC,Resources,Central Services to the Public,Amazon Prime,25/09/2017,7.99,Purchase Card Statement Summary,161000 - Domestic Goods - Commercial
Solihull MBC,Children's Services & Skills,Children & Education Services,Amazon UK Marketplace,25/09/2017,1.31,Purchase Card Statement Summary,161000 - Domestic Goods - Commercial
Solihull MBC,Children's Services - DSG Central.,Children & Education Services,Amazon UK Marketplace,25/09/2017,3.99,Purchase Card Statement Summary,161000 - Domestic Goods - Commercial
Solihull MBC,Children's Services - DSG Central.,Children & Education Services,Amazon UK Marketplace,25/09/2017,4.79,Purchase Card Statement Summary,161000 - Domestic Goods - Commercial
Solihull MBC,Resources,Central Services to the Public,Amazon UK Marketplace,09/08/2017,4.99,IT Equipment & Software,161000 - Domestic Goods - Commercial
Solihull MBC,Resources,Central Services to the Public,Amazon UK Marketplace,11/08/2017,5.30,IT Equipment & Software,171114 - Education - Literature
Solihull MBC,Children's Services & Skills,Children & Education Services,Amazon UK Marketplace,25/09/2017,7.97,Purchase Card Statement Summary,161000 - Domestic Goods - Commercial
Solihull MBC,Resources,Central Services to the Public,Amazon UK Marketplace,25/08/2017,8.82,IT Equipment & Software,171114 - Education - Literature
Solihull MBC,Children's Services & Skills,Children & Education Services,Amazon UK Marketplace,25/09/2017,8.99,Purchase Card Statement Summary,161000 - Domestic Goods - Commercial
Solihull MBC,Children's Services - DSG Central.,Children & Education Services,Amazon UK Marketplace,25/09/2017,9.87,Purchase Card Statement Summary,161000 - Domestic Goods - Commercial
Solihull MBC,Children's Services & Skills,Children & Education Services,Amazon UK Marketplace,25/09/2017,11.24,Purchase Card Statement Summary,161000 - Domestic Goods - Commercial
Solihull MBC,Adult Social Care,Adult Social Care,Amazon UK Marketplace,25/09/2017,11.47,Purchase Card Statement Summary,161000 - Domestic Goods - Commercial
Solihull MBC,Resources,Central Services to the Public,Amazon UK Marketplace,16/08/2017,14.12,Materials,171114 - Education - Literature
Solihull MBC,Resources,Central Services to the Public,Amazon UK Marketplace,17/08/2017,14.56,Materials,161000 - Domestic Goods - Commercial
Solihull MBC,Public Health & Commissioning,Central Services to the Public,Amazon UK Marketplace,25/09/2017,14.99,Purchase Card Statement Summary,161000 - Domestic Goods - Commercial
Solihull MBC,Resources,Central Services to the Public,Amazon UK Marketplace,31/08/2017,17.35,Materials,171114 - Education - Literature
Solihull MBC,Children's Services & Skills,Children & Education Services,Amazon UK Marketplace,25/09/2017,17.94,Purchase Card Statement Summary,161000 - Domestic Goods - Commercial
Solihull MBC,Resources,Central Services to the Public,Amazon UK Marketplace,30/08/2017,22.37,IT Equipment & Software,171114 - Education - Literature
Solihull MBC,Children's Services - DSG Central.,Children & Education Services,Amazon UK Marketplace,25/09/2017,24.36,Purchase Card Statement Summary,161000 - Domestic Goods - Commercial
Solihull MBC,Children's Services & Skills,Children & Education Services,Amazon UK Marketplace,25/09/2017,25.91,Purchase Card Statement Summary,161000 - Domestic Goods - Commercial
Solihull MBC,Children's Services & Skills,Children & Education Services,Amazon UK Marketplace,16/08/2017,31.88,Materials,161000 - Domestic Goods - Commercial
Solihull MBC,Children's Services & Skills,Children & Education Services,Amazon UK Marketplace,25/09/2017,31.94,Purchase Card Statement Summary,161000 - Domestic Goods - Commercial
Solihull MBC,Resources,Central Services to the Public,Amazon UK Marketplace,18/08/2017,34.99,IT Equipment & Software,171114 - Education - Literature
Solihull MBC,Adult Social Care,Adult Social Care,Amazon UK Marketplace,07/08/2017,44.95,Materials,161000 - Domestic Goods - Commercial
Solihull MBC,Adult Social Care,Cultural & Related Services,Amazon UK Marketplace,25/09/2017,50.36,Purchase Card Statement Summary,161000 - Domestic Goods - Commercial
Solihull MBC,Managed Growth and Communities - HRA,Housing Revenue Account,Amazon UK Marketplace,25/09/2017,58.98,General Debtors,161000 - Domestic Goods - Commercial
Solihull MBC,Resources,Central Services to the Public,Amazon UK Marketplace,05/08/2017,69.98,IT Equipment & Software,161000 - Domestic Goods - Commercial
Solihull MBC,Resources,Central Services to the Public,Amazon UK Marketplace,25/09/2017,89.70,Purchase Card Statement Summary,161000 - Domestic Goods - Commercial
Solihull MBC,Children's Services - DSG Central.,Children & Education Services,Amazon UK Marketplace,25/09/2017,113.78,Purchase Card Statement Summary,161000 - Domestic Goods - Commercial
Solihull MBC,Children's Services & Skills,Children & Education Services,Amazon UK Retail,16/08/2017,6.82,Materials,161000 - Domestic Goods - Commercial
Solihull MBC,Children's Services & Skills,Children & Education Services,Amazon UK Retail,25/09/2017,10.59,Purchase Card Statement Summary,161000 - Domestic Goods - Commercial
Solihull MBC,Resources,Central Services to the Public,Amazon UK Retail,05/08/2017,11.80,Materials,161000 - Domestic Goods - Commercial
Solihull MBC,Children's Services & Skills,Children & Education Services,Amazon UK Retail,25/09/2017,22.99,Purchase Card Statement Summary,161000 - Domestic Goods - Commercial
Solihull MBC,Adult Social Care,Adult Social Care,Amazon UK Retail,25/09/2017,32.98,Purchase Card Statement Summary,161000 - Domestic Goods - Commercial
Solihull MBC,Children's Services & Skills,Children & Education Services,Amazon UK Retail,23/08/2017,53.33,Materials,161000 - Domestic Goods - Commercial
Solihull MBC,Children's Services & Skills,Children & Education Services,Amazon UK Retail,23/08/2017,53.33,Materials,161000 - Domestic Goods - Commercial
Solihull MBC,Children's Services & Skills,Children & Education Services,Amazon UK Retail,25/09/2017,99.46,Purchase Card Statement Summary,161000 - Domestic Goods - Commercial
Solihull MBC,Resources,Central Services to the Public,Amazon UK Retail,23/08/2017,987.95,IT Equipment & Software,161000 - Domestic Goods - Commercial
Solihull MBC,Children's Services & Skills,Children & Education Services,Amazon UK Retail Amazon.C,17/08/2017,6.80,Materials,161000 - Domestic Goods - Commercial
Solihull MBC,Children's Services & Skills,Children & Education Services,Amazon UK Retail Amazon.C,25/09/2017,16.89,Purchase Card Statement Summary,161000 - Domestic Goods - Commercial
Solihull MBC,Children's Services & Skills,Children & Education Services,Amazon UK Retail Amazon.C,25/09/2017,48.76,Purchase Card Statement Summary,161000 - Domestic Goods - Commercial
Solihull MBC,Resources,Central Services to the Public,Amazon.co.uk,25/09/2017,1.59,Purchase Card Statement Summary,171114 - Education - Literature
Solihull MBC,Children's Services & Skills,Children & Education Services,Amazon.co.uk,25/09/2017,1.95,Purchase Card Statement Summary,171114 - Education - Literature
Solihull MBC,Children's Services & Skills,Children & Education Services,Amazon.co.uk,25/09/2017,2.99,Purchase Card Statement Summary,171114 - Education - Literature
Solihull MBC,Adult Social Care,Adult Social Care,Amazon.co.uk,25/09/2017,10.98,Purchase Card Statement Summary,171114 - Education - Literature
Solihull MBC,Resources,Central Services to the Public,Amazon.co.uk,18/08/2017,11.65,IT Equipment & Software,171114 - Education - Literature
Solihull MBC,Resources,Central Services to the Public,Amazon.co.uk,17/08/2017,11.66,Materials,171114 - Education - Literature
Solihull MBC,Children's Services & Skills,Children & Education Services,Amazon.co.uk,25/09/2017,11.79,Purchase Card Statement Summary,171114 - Education - Literature
Solihull MBC,Adult Social Care,Adult Social Care,Amazon.co.uk,25/09/2017,13.84,Purchase Card Statement Summary,171114 - Education - Literature
Solihull MBC,Resources,Central Services to the Public,Amazon.co.uk,04/08/2017,30.25,IT Equipment & Software,161000 - Domestic Goods - Commercial
Solihull MBC,Adult Social Care,Adult Social Care,Ao Retail Limited,25/09/2017,274.00,Purchase Card Statement Summary,169999 - Domestic Goods - Not Elsewhere Classified
Solihull MBC,Adult Social Care,Cultural & Related Services,Arco Ltd,25/09/2017,29.27,Purchase Card Statement Summary,141300 - Clothing - Uniforms
Solihull MBC,Adult Social Care,Adult Social Care,Argos Ltd,25/09/2017,24.99,Purchase Card Statement Summary,169999 - Domestic Goods - Not Elsewhere Classified
Solihull MBC,Children's Services & Skills,Children & Education Services,Argos Ltd,25/09/2017,38.03,Purchase Card Statement Summary,169999 - Domestic Goods - Not Elsewhere Classified
Solihull MBC,Resources,Children & Education Services,Argos Ltd,25/09/2017,39.98,Purchase Card Statement Summary,169999 - Domestic Goods - Not Elsewhere Classified
Solihull MBC,Children's Services & Skills,Children & Education Services,Argos Retail Group,25/09/2017,-4.29,Purchase Card Statement Summary,169999 - Domestic Goods - Not Elsewhere Classified
Solihull MBC,Children's Services & Skills,Children & Education Services,Argos Retail Group,25/09/2017,7.48,Purchase Card Statement Summary,169999 - Domestic Goods - Not Elsewhere Classified
Solihull MBC,Adult Social Care,Adult Social Care,Argos Retail Group,17/08/2017,27.91,Other Contracted Services,169999 - Domestic Goods - Not Elsewhere Classified
Solihull MBC,Children's Services & Skills,Children & Education Services,Argos Retail Group,25/09/2017,29.94,Purchase Card Statement Summary,169999 - Domestic Goods - Not Elsewhere Classified
Solihull MBC,Children's Services & Skills,Children & Education Services,Argos Retail Group,25/09/2017,51.96,Purchase Card Statement Summary,169999 - Domestic Goods - Not Elsewhere Classified
Solihull MBC,Children's Services & Skills,Children & Education Services,Argos Retail Group,25/09/2017,58.98,Purchase Card Statement Summary,169999 - Domestic Goods - Not Elsewhere Classified
Solihull MBC,Children's Services & Skills,Children & Education Services,Argos Retail Group,25/09/2017,89.99,Purchase Card Statement Summary,169999 - Domestic Goods - Not Elsewhere Classified
Solihull MBC,Children's Services & Skills,Children & Education Services,Argos Retail Group,25/09/2017,149.00,Purchase Card Statement Summary,169999 - Domestic Goods - Not Elsewhere Classified
Solihull MBC,Children's Services & Skills,Children & Education Services,Argos Retail Group,25/09/2017,152.23,Purchase Card Statement Summary,169999 - Domestic Goods - Not Elsewhere Classified
Solihull MBC,Children's Services & Skills,Children & Education Services,Argos Retail Group,25/09/2017,189.99,Purchase Card Statement Summary,169999 - Domestic Goods - Not Elsewhere Classified
Solihull MBC,Children's Services & Skills,Children & Education Services,Argos Retail Group,25/09/2017,199.99,Purchase Card Statement Summary,169999 - Domestic Goods - Not Elsewhere Classified
Solihull MBC,Resources,Central Services to the Public,Argos Retail Group,25/09/2017,400.48,Purchase Card Statement Summary,169999 - Domestic Goods - Not Elsewhere Classified
Solihull MBC,Adult Social Care,Adult Social Care,Asda  Stores 5880,03/08/2017,6.19,Catering Provisions,111200 - Catering - Food & Beverages
Solihull MBC,Adult Social Care,Adult Social Care,Asda Stores 4453,25/09/2017,53.28,Purchase Card Statement Summary,111200 - Catering - Food & Beverages
Solihull MBC,Adult Social Care,Adult Social Care,Asda Stores 5881,25/09/2017,3.00,Purchase Card Statement Summary,161000 - Domestic Goods - Commercial
Solihull MBC,Adult Social Care,Adult Social Care,Asda Stores 5881,18/08/2017,4.50,General Office Expenses,111200 - Catering - Food & Beverages
Solihull MBC,Adult Social Care,Adult Social Care,Asda Stores 5881,25/09/2017,8.00,Purchase Card Statement Summary,161000 - Domestic Goods - Commercial
Solihull MBC,Adult Social Care,Adult Social Care,Asda Stores 5881,23/08/2017,8.76,Cleaning,111200 - Catering - Food & Beverages
Solihull MBC,Adult Social Care,Adult Social Care,Asda Stores 5881,07/08/2017,9.07,Cleaning,111200 - Catering - Food & Beverages
Solihull MBC,Adult Social Care,Adult Social Care,Asda Stores 5881,25/09/2017,12.20,Purchase Card Statement Summary,161000 - Domestic Goods - Commercial
Solihull MBC,Adult Social Care,Adult Social Care,Asda Stores 5881,25/09/2017,14.60,Purchase Card Statement Summary,161000 - Domestic Goods - Commercial
Solihull MBC,Adult Social Care,Adult Social Care,Asda Stores 5881,25/09/2017,18.60,Purchase Card Statement Summary,161000 - Domestic Goods - Commercial
Solihull MBC,Adult Social Care,Adult Social Care,Asda Stores 5881,25/09/2017,19.55,Purchase Card Statement Summary,161000 - Domestic Goods - Commercial
Solihull MBC,Adult Social Care,Adult Social Care,Asda Stores 5881,14/08/2017,20.59,Catering Provisions,111200 - Catering - Food & Beverages
Solihull MBC,Adult Social Care,Adult Social Care,Asda Stores 5881,10/08/2017,20.87,Catering Provisions,111200 - Catering - Food & Beverages
Solihull MBC,Children's Services & Skills,Children & Education Services,Asda Stores 5881,25/09/2017,23.27,Purchase Card Statement Summary,161000 - Domestic Goods - Commercial
Solihull MBC,Adult Social Care,Adult Social Care,Asda Stores 5881,25/09/2017,26.30,Purchase Card Statement Summary,161000 - Domestic Goods - Commercial
Solihull MBC,Adult Social Care,Adult Social Care,Asda Stores 5881,03/08/2017,29.43,Catering Provisions,111200 - Catering - Food & Beverages
Solihull MBC,Adult Social Care,Adult Social Care,Asda Stores 5881,22/08/2017,39.69,Catering Provisions,111200 - Catering - Food & Beverages
Solihull MBC,Adult Social Care,Adult Social Care,Asda Stores 5881,29/08/2017,42.36,Catering Provisions,111200 - Catering - Food & Beverages
Solihull MBC,Adult Social Care,Adult Social Care,Asda Stores 5881,07/08/2017,47.36,Catering Provisions,111200 - Catering - Food & Beverages
Solihull MBC,Adult Social Care,Adult Social Care,Asda Stores 5881,15/08/2017,48.39,Catering Provisions,111200 - Catering - Food & Beverages
Solihull MBC,Adult Social Care,Adult Social Care,Asda Stores 5881,23/08/2017,56.68,Catering Provisions,111200 - Catering - Food & Beverages
Solihull MBC,Adult Social Care,Adult Social Care,Asda Stores 5881,08/08/2017,71.94,Catering Provisions,111200 - Catering - Food & Beverages
Solihull MBC,Adult Social Care,Adult Social Care,Asda Stores 5881,25/09/2017,78.99,Purchase Card Statement Summary,161000 - Domestic Goods - Commercial
Solihull MBC,Children's Services & Skills,Children & Education Services,Asda Stores 5881,25/09/2017,100.00,Purchase Card Statement Summary,161000 - Domestic Goods - Commercial
Solihull MBC,Adult Social Care,Adult Social Care,Asda Stores 5881,31/08/2017,106.04,Catering Provisions,111200 - Catering - Food & Beverages
Solihull MBC,Adult Social Care,Adult Social Care,Asda Stores 5881,25/09/2017,110.33,Purchase Card Statement Summary,161000 - Domestic Goods - Commercial
Solihull MBC,Adult Social Care,Adult Social Care,Asda Stores 5881,25/09/2017,157.59,Purchase Card Statement Summary,161000 - Domestic Goods - Commercial
Solihull MBC,Children's Services & Skills,Children & Education Services,Asda Stores 5881,25/09/2017,200.00,Purchase Card Statement Summary,161000 - Domestic Goods - Commercial
Solihull MBC,Children's Services & Skills,Children & Education Services,Asda Stores 5881,25/09/2017,270.00,Purchase Card Statement Summary,161000 - Domestic Goods - Commercial
Solihull MBC,Children's Services & Skills,Children & Education Services,Asda Superstore,12/08/2017,15.00,General Office Expenses,111200 - Catering - Food & Beverages
Solihull MBC,Managed Growth and Communities,Environmental and Regulatory Services,Asda� Stores 5880,25/09/2017,12.00,Purchase Card Statement Summary,111200 - Catering - Food & Beverages
Solihull MBC,Resources,Cultural & Related Services,B&M Retail,23/08/2017,11.02,Materials,169999 - Domestic Goods - Not Elsewhere Classified
Solihull MBC,Adult Social Care,Adult Social Care,B&M Retail Ltd,22/08/2017,6.91,Catering Provisions,169999 - Domestic Goods - Not Elsewhere Classified
Solihull MBC,Adult Social Care,Adult Social Care,Bath House Cafe,30/08/2017,9.60,Catering Provisions,261600 - Human Resources - Travel & Subsistence
Solihull MBC,Adult Social Care,Adult Social Care,Bay Of India,25/09/2017,38.75,Purchase Card Statement Summary,261600 - Human Resources - Travel & Subsistence
Solihull MBC,Children's Services & Skills,Children & Education Services,BCC Register Offic,25/09/2017,-10.00,Purchase Card Statement Summary,209999 - Financial Services - Not Elsewhere Classified
Solihull MBC,Children's Services & Skills,Children & Education Services,BCC Register Offic,25/09/2017,-3.00,Purchase Card Statement Summary,209999 - Financial Services - Not Elsewhere Classified
Solihull MBC,Children's Services & Skills,Children & Education Services,BCC Register Offic,25/09/2017,15.00,Purchase Card Statement Summary,209999 - Financial Services - Not Elsewhere Classified
Solihull MBC,Children's Services & Skills,Children & Education Services,BCC Register Offic,25/09/2017,15.00,Purchase Card Statement Summary,209999 - Financial Services - Not Elsewhere Classified
Solihull MBC,Children's Services & Skills,Children & Education Services,BCC Register Offic,25/09/2017,15.00,Purchase Card Statement Summary,209999 - Financial Services - Not Elsewhere Classified
Solihull MBC,Children's Services & Skills,Children & Education Services,BCC Register Offic,25/09/2017,15.00,Purchase Card Statement Summary,209999 - Financial Services - Not Elsewhere Classified
Solihull MBC,Adult Social Care,Adult Social Care,BD Wholesale Meats South,25/09/2017,46.00,Purchase Card Statement Summary,111200 - Catering - Food & Beverages
Solihull MBC,Adult Social Care,Adult Social Care,BD Wholesale Meats South,25/09/2017,66.00,Purchase Card Statement Summary,111200 - Catering - Food & Beverages
Solihull MBC,Adult Social Care,Adult Social Care,Berwick Care Equipment-V,25/08/2017,81.00,Cleaning,311300 - Healthcare - Equipment
Solihull MBC,Public Health & Commissioning,Cultural & Related Services,BHF,25/09/2017,10.00,Purchase Card Statement Summary,201710 - Financial Services - Grants - Charitable
Solihull MBC,Adult Social Care,Adult Social Care,Birmingham Hippodrome,15/08/2017,26.72,Clients Expenses,291300 - Arts & Leisure Services - Performing Arts
Solihull MBC,Resources,Corporate & Democratic Core,Boots 0335,14/08/2017,14.00,Purchase Card Statement Summary,311200 - Healthcare - Drugs
Solihull MBC,Resources,Central Services to the Public,Brtmkt DBA Fastspring,25/09/2017,549.00,Purchase Card Statement Summary,271430 - Information Communication Technology - Software - Commercial Off-The-Shelf
Solihull MBC,Adult Social Care,Cultural & Related Services,Buysubscriptions.C,25/09/2017,41.90,Purchase Card Statement Summary,349999 - Stationery - Not Elsewhere Classified
Solihull MBC,Managed Growth and Communities,Cultural & Related Services,C Curtiss & Sons L,08/08/2017,12.00,Materials,102500 - Building Construction Materials - Timber
Solihull MBC,Managed Growth and Communities,Environmental and Regulatory Services,C Curtiss & Sons L,25/09/2017,32.40,Purchase Card Statement Summary,102500 - Building Construction Materials - Timber
Solihull MBC,Adult Social Care,Adult Social Care,Caffe Nero 651 Solihull M,14/08/2017,2.60,Clients Expenses,261600 - Human Resources - Travel & Subsistence
Solihull MBC,Children's Services & Skills,Children & Education Services,Carpetright PLC 276,25/09/2017,600.49,Purchase Card Statement Summary,101300 - Building Construction Materials - Floor Coverings
Solihull MBC,Resources,Children & Education Services,Central Eng Coop,25/09/2017,2.09,Purchase Card Statement Summary,169999 - Domestic Goods - Not Elsewhere Classified
Solihull MBC,Managed Growth and Communities,Environmental and Regulatory Services,CIEH,25/09/2017,102.00,Purchase Card Statement Summary,201711 - Financial Services - Grants - Non-charitable
Solihull MBC,Adult Social Care,Adult Social Care,Cineworld NEC Birm,25/09/2017,9.10,Purchase Card Statement Summary,291300 - Arts & Leisure Services - Performing Arts
Solihull MBC,Adult Social Care,Adult Social Care,Cineworld NEC Birm,25/09/2017,9.10,Purchase Card Statement Summary,291300 - Arts & Leisure Services - Performing Arts
Solihull MBC,Adult Social Care,Adult Social Care,Cineworld NEC Birm,25/09/2017,9.10,Purchase Card Statement Summary,291300 - Arts & Leisure Services - Performing Arts
Solihull MBC,Managed Growth and Communities,Environmental and Regulatory Services,CKB Ltd,25/09/2017,144.00,Purchase Card Statement Summary,169999 - Domestic Goods - Not Elsewhere Classified
Solihull MBC,Resources,Central Services to the Public,Clickatell Ltd,25/09/2017,32.64,Purchase Card Statement Summary,271699 - Information Communications Technology - Telecommunications
Solihull MBC,Resources,Central Services to the Public,Clickatell Ltd,25/09/2017,32.64,Purchase Card Statement Summary,271699 - Information Communications Technology - Telecommunications
Solihull MBC,Adult Social Care,Adult Social Care,Coop Foodctr,04/08/2017,5.14,Catering Provisions,111200 - Catering - Food & Beverages
Solihull MBC,Managed Growth and Communities,Planning & Development Services,Costa Coffe,22/08/2017,4.70,Car Allowances: Officers,261600 - Human Resources - Travel & Subsistence
Solihull MBC,Adult Social Care,Adult Social Care,Costa Coffee,09/08/2017,12.60,Clients Expenses,261600 - Human Resources - Travel & Subsistence
Solihull MBC,Managed Growth and Communities - HRA,Housing Revenue Account,Costco On-Line,25/09/2017,60.00,General Debtors,169999 - Domestic Goods - Not Elsewhere Classified
Solihull MBC,Managed Growth and Communities,Highways & Transport Services,Crowne Plaza,25/09/2017,8.85,Purchase Card Statement Summary,261000 - Human Resources - Accommodation
Solihull MBC,Managed Growth and Communities,Planning & Development Services,Crucial.com,10/08/2017,24.49,IT Equipment & Software,271200 - Information Communications Technology - Hardware
Solihull MBC,Managed Growth and Communities - HRA,Housing Revenue Account,Currys Online,25/09/2017,274.99,General Debtors,169999 - Domestic Goods - Not Elsewhere Classified
Solihull MBC,Public Health & Commissioning,Adult Social Care,Decathlon UK Ltd,25/09/2017,111.92,Purchase Card Statement Summary,331300 - Sports & Playground Equipment & Maintenance - Sports Equipment
Solihull MBC,Managed Growth and Communities,Highways & Transport Services,DHL,25/09/2017,46.17,Purchase Card Statement Summary,301100 - Mail Services - Freight
Solihull MBC,Adult Social Care,Cultural & Related Services,Displaysense.co.uk,25/09/2017,271.20,Purchase Card Statement Summary,301200 - Mail Services - Postage
Solihull MBC,Adult Social Care,Adult Social Care,Drawbridge Inn,17/08/2017,5.87,Clients Expenses,261600 - Human Resources - Travel & Subsistence
Solihull MBC,Children's Services & Skills,Children & Education Services,Drayton Manor Park Limite,25/09/2017,19.50,Purchase Card Statement Summary,299999 - Arts & Leisure Services - Not Elsewhere Classified
Solihull MBC,Adult Social Care,Adult Social Care,Druckers,11/08/2017,1.37,Clients Expenses,261600 - Human Resources - Travel & Subsistence
Solihull MBC,Children's Services - DSG Central.,Children & Education Services,Dunelm Online Order,25/09/2017,25.95,Purchase Card Statement Summary,211210 - Furniture & Soft Furnishings - Soft Furnishings
Solihull MBC,Public Health & Commissioning,Central Services to the Public,Eb *The Future Of Olde,22/08/2017,41.67,Training,151000 - Consultancy - Business
Solihull MBC,Managed Growth and Communities - HRA,Housing Revenue Account,Eb *The Future Of Olde,25/09/2017,50.00,General Debtors,151000 - Consultancy - Business
Solihull MBC,Public Health & Commissioning,Adult Social Care,England Athletics,25/09/2017,160.00,Purchase Card Statement Summary,331300 - Sports & Playground Equipment & Maintenance - Sports Equipment
Solihull MBC,Adult Social Care,Adult Social Care,Farmfoods- Castle,25/09/2017,16.00,Purchase Card Statement Summary,111200 - Catering - Food & Beverages
Solihull MBC,Adult Social Care,Adult Social Care,Farmfoods- Castle,25/09/2017,18.50,Purchase Card Statement Summary,111200 - Catering - Food & Beverages
Solihull MBC,Resources,Corporate & Democratic Core,Fleur-De-Lis,29/08/2017,25.00,Purchase Card Statement Summary,249999 - Horticultural - Not Elsewhere Classified
Solihull MBC,Adult Social Care,Adult Social Care,Fort Jester,25/09/2017,35.42,Purchase Card Statement Summary,261600 - Human Resources - Travel & Subsistence
Solihull MBC,Adult Social Care,Adult Social Care,Fort Jester,25/09/2017,40.18,Purchase Card Statement Summary,261600 - Human Resources - Travel & Subsistence
Solihull MBC,Resources,Corporate & Democratic Core,Gordon Scott,25/09/2017,-71.20,Purchase Card Statement Summary,141000 - Clothing - Children & Adults
Solihull MBC,Resources,Corporate & Democratic Core,Gordon Scott,25/09/2017,71.20,Purchase Card Statement Summary,141000 - Clothing - Children & Adults
Solihull MBC,Adult Social Care,Adult Social Care,Greggs PLC,31/08/2017,4.00,Clients Expenses,261600 - Human Resources - Travel & Subsistence
Solihull MBC,Children's Services & Skills,Children & Education Services,GRO HM Passport Office,25/09/2017,-29.85,Purchase Card Statement Summary,209999 - Financial Services - Not Elsewhere Classified
Solihull MBC,Children's Services & Skills,Children & Education Services,GRO HM Passport Office,25/09/2017,-23.40,Purchase Card Statement Summary,209999 - Financial Services - Not Elsewhere Classified
Solihull MBC,Children's Services & Skills,Children & Education Services,GRO HM Passport Office,25/09/2017,9.25,Purchase Card Statement Summary,209999 - Financial Services - Not Elsewhere Classified
Solihull MBC,Children's Services & Skills,Children & Education Services,GRO HM Passport Office,25/09/2017,18.50,Purchase Card Statement Summary,209999 - Financial Services - Not Elsewhere Classified
Solihull MBC,Children's Services & Skills,Children & Education Services,GRO HM Passport Office,25/09/2017,23.40,Purchase Card Statement Summary,209999 - Financial Services - Not Elsewhere Classified
Solihull MBC,Children's Services & Skills,Children & Education Services,GRO HM Passport Office,25/09/2017,23.40,Purchase Card Statement Summary,209999 - Financial Services - Not Elsewhere Classified
Solihull MBC,Children's Services & Skills,Children & Education Services,GRO HM Passport Office,25/09/2017,23.40,Purchase Card Statement Summary,209999 - Financial Services - Not Elsewhere Classified
Solihull MBC,Children's Services & Skills,Children & Education Services,GRO HM Passport Office,25/09/2017,23.40,Purchase Card Statement Summary,209999 - Financial Services - Not Elsewhere Classified
Solihull MBC,Children's Services & Skills,Children & Education Services,GRO HM Passport Office,25/09/2017,23.40,Purchase Card Statement Summary,209999 - Financial Services - Not Elsewhere Classified
Solihull MBC,Children's Services & Skills,Children & Education Services,GRO HM Passport Office,25/09/2017,29.85,Purchase Card Statement Summary,209999 - Financial Services - Not Elsewhere Classified
Solihull MBC,Children's Services & Skills,Children & Education Services,GRO HM Passport Office,25/09/2017,70.20,Purchase Card Statement Summary,209999 - Financial Services - Not Elsewhere Classified
Solihull MBC,Children's Services & Skills,Children & Education Services,GRO HM Passport Office,25/09/2017,70.20,Purchase Card Statement Summary,209999 - Financial Services - Not Elsewhere Classified
Solihull MBC,Children's Services & Skills,Children & Education Services,GRO HM Passport Office,25/09/2017,76.65,Purchase Card Statement Summary,209999 - Financial Services - Not Elsewhere Classified
Solihull MBC,Adult Social Care,Cultural & Related Services,Guardian News And Medi,25/09/2017,41.12,Purchase Card Statement Summary,349999 - Stationery - Not Elsewhere Classified
Solihull MBC,Adult Social Care,Cultural & Related Services,Guardian News And Medi,25/09/2017,41.12,Purchase Card Statement Summary,349999 - Stationery - Not Elsewhere Classified
Solihull MBC,Adult Social Care,Adult Social Care,Halfords 0411,06/08/2017,18.32,Other Premise Costs,331300 - Sports & Playground Equipment & Maintenance - Sports Equipment
Solihull MBC,Adult Social Care,Adult Social Care,Harlech Castle,25/09/2017,11.45,Purchase Card Statement Summary,209999 - Financial Services - Not Elsewhere Classified
Solihull MBC,Adult Social Care,Cultural & Related Services,Haymarket Subscription,25/09/2017,44.00,Purchase Card Statement Summary,349999 - Stationery - Not Elsewhere Classified
Solihull MBC,Adult Social Care,Cultural & Related Services,Haymarket Subscription,25/09/2017,44.00,Purchase Card Statement Summary,349999 - Stationery - Not Elsewhere Classified
Solihull MBC,Adult Social Care,Adult Social Care,Hillfield Farm,02/08/2017,4.74,Clients Expenses,261600 - Human Resources - Travel & Subsistence
Solihull MBC,Resources,Central Services to the Public,HMCourts-Service.G,08/08/2017,-3000.00,Court Fees,209999 - Financial Services - Not Elsewhere Classified
Solihull MBC,Resources,Central Services to the Public,HMCourts-Service.G,08/08/2017,-2187.00,Court Fees,209999 - Financial Services - Not Elsewhere Classified
Solihull MBC,Adult Social Care,Adult Social Care,HMCourts-Service.G,21/08/2017,75.00,Room Hire/ Premises Hire,209999 - Financial Services - Not Elsewhere Classified
Solihull MBC,Resources,Central Services to the Public,HMCourts-Service.G,10/08/2017,1080.00,Court Fees,209999 - Financial Services - Not Elsewhere Classified
Solihull MBC,Resources,Central Services to the Public,HMCourts-Service.G,10/08/2017,1182.00,Court Fees,209999 - Financial Services - Not Elsewhere Classified
Solihull MBC,Resources,Central Services to the Public,HMCourts-Service.G,16/08/2017,1263.00,Court Fees,209999 - Financial Services - Not Elsewhere Classified
Solihull MBC,Resources,Central Services to the Public,HMCourts-Service.G,10/08/2017,1335.00,Court Fees,209999 - Financial Services - Not Elsewhere Classified
Solihull MBC,Resources,Central Services to the Public,HMCourts-Service.G,10/08/2017,2433.00,Court Fees,209999 - Financial Services - Not Elsewhere Classified
Solihull MBC,Adult Social Care,Adult Social Care,Hobbycraft Group L,25/09/2017,12.00,Purchase Card Statement Summary,171110 - Education - Arts & Crafts
Solihull MBC,Adult Social Care,Adult Social Care,Hobbycraft Group L,25/09/2017,18.00,Purchase Card Statement Summary,171110 - Education - Arts & Crafts
Solihull MBC,Adult Social Care,Adult Social Care,Hobbycraft Group L,25/09/2017,42.00,Purchase Card Statement Summary,171110 - Education - Arts & Crafts
Solihull MBC,Adult Social Care,Central Services to the Public,Home Bargains Chelmsle,04/08/2017,22.17,General Office Expenses,101400 - Building Construction Materials - General Materials
Solihull MBC,Adult Social Care,Adult Social Care,Iceland,25/09/2017,92.37,Purchase Card Statement Summary,111200 - Catering - Food & Beverages
Solihull MBC,Adult Social Care,Adult Social Care,Iceland,25/09/2017,104.07,Purchase Card Statement Summary,111200 - Catering - Food & Beverages
Solihull MBC,Adult Social Care,Adult Social Care,Inn Keepers Fayre,25/09/2017,25.46,Purchase Card Statement Summary,261600 - Human Resources - Travel & Subsistence
Solihull MBC,Adult Social Care,Central Services to the Public,J & A (Int) Ltd,25/09/2017,41.70,Purchase Card Statement Summary,341100 - Stationery - Sundries
Solihull MBC,Adult Social Care,Central Services to the Public,J & A (Int) Ltd,25/09/2017,193.49,Purchase Card Statement Summary,341100 - Stationery - Sundries
Solihull MBC,Adult Social Care,Adult Social Care,JS Online Grocery,25/09/2017,48.16,Purchase Card Statement Summary,111200 - Catering - Food & Beverages
Solihull MBC,Adult Social Care,Adult Social Care,JS Online Grocery,25/09/2017,61.05,Purchase Card Statement Summary,111200 - Catering - Food & Beverages
Solihull MBC,Adult Social Care,Adult Social Care,JS Online Grocery,25/09/2017,105.97,Purchase Card Statement Summary,111200 - Catering - Food & Beverages
Solihull MBC,Adult Social Care,Adult Social Care,JS Online Grocery,25/09/2017,138.81,Purchase Card Statement Summary,111200 - Catering - Food & Beverages
Solihull MBC,Adult Social Care,Adult Social Care,Keep Able,22/08/2017,32.60,Cleaning,311300 - Healthcare - Equipment
Solihull MBC,Children's Services & Skills,Children & Education Services,Kiddicare,25/09/2017,39.92,Purchase Card Statement Summary,211210 - Furniture & Soft Furnishings - Soft Furnishings
Solihull MBC,Adult Social Care,Central Services to the Public,Lakeland Limited,25/09/2017,39.99,Purchase Card Statement Summary,169999 - Domestic Goods - Not Elsewhere Classified
Solihull MBC,Adult Social Care,Adult Social Care,Lidl UK,25/09/2017,9.61,Purchase Card Statement Summary,111200 - Catering - Food & Beverages
Solihull MBC,Adult Social Care,Adult Social Care,Local Parking Secu,25/09/2017,51.65,Purchase Card Statement Summary,151000 - Consultancy - Business
Solihull MBC,Managed Growth and Communities,Environmental and Regulatory Services,London Midland Tic,25/09/2017,3.70,Purchase Card Statement Summary,261600 - Human Resources - Travel & Subsistence
Solihull MBC,Adult Social Care,Adult Social Care,London Midland Tic,25/09/2017,16.90,Purchase Card Statement Summary,261600 - Human Resources - Travel & Subsistence
Solihull MBC,Managed Growth and Communities,Planning & Development Services,Lyreco UK Ltd,15/08/2017,33.82,General Office Expenses,341100 - Stationery - Sundries
Solihull MBC,Managed Growth and Communities,Environmental and Regulatory Services,M&J Mahoney & Sons Ltd,25/09/2017,60.00,Purchase Card Statement Summary,102500 - Building Construction Materials - Timber
Solihull MBC,Adult Social Care,Cultural & Related Services,Magazines Subscription,25/09/2017,49.14,Purchase Card Statement Summary,349999 - Stationery - Not Elsewhere Classified
Solihull MBC,Adult Social Care,Cultural & Related Services,Magazinesdirect.com,25/09/2017,33.81,Purchase Card Statement Summary,161000 - Domestic Goods - Commercial
Solihull MBC,Children's Services & Skills,Children & Education Services,Mansuri,25/09/2017,104.00,Purchase Card Statement Summary,141000 - Clothing - Children & Adults
Solihull MBC,Resources,Corporate & Democratic Core,Marks&Spencer PLC,22/08/2017,45.00,General Office Expenses,111200 - Catering - Food & Beverages
Solihull MBC,Adult Social Care,Adult Social Care,Marks&Spencer PLC SACA,25/09/2017,14.00,Purchase Card Statement Summary,111200 - Catering - Food & Beverages
Solihull MBC,Public Health & Commissioning,Adult Social Care,Maudesport Ltd,25/09/2017,79.05,Purchase Card Statement Summary,331300 - Sports & Playground Equipment & Maintenance - Sports Equipment
Solihull MBC,Adult Social Care,Adult Social Care,McDonalds,25/09/2017,7.56,Purchase Card Statement Summary,261600 - Human Resources - Travel & Subsistence
Solihull MBC,Adult Social Care,Cultural & Related Services,MDP Supplies,25/09/2017,73.63,Purchase Card Statement Summary,171110 - Education - Arts & Crafts
Solihull MBC,Managed Growth and Communities,Planning & Development Services,Monkeyoffice.co.uk,15/08/2017,-5.59,General Office Expenses,341100 - Stationery - Sundries
Solihull MBC,Managed Growth and Communities,Planning & Development Services,Monkeyoffice.co.uk,14/08/2017,295.05,General Office Expenses,341100 - Stationery - Sundries
Solihull MBC,Children's Services & Skills,Children & Education Services,Monster Skips Ltd,25/09/2017,195.00,Purchase Card Statement Summary,219999 - Furniture & Soft Furnishings - Not Elsewhere Classified
Solihull MBC,Adult Social Care,Cultural & Related Services,Monster Skips Ltd,25/09/2017,195.00,Purchase Card Statement Summary,219999 - Furniture & Soft Furnishings - Not Elsewhere Classified
Solihull MBC,Managed Growth and Communities,Highways & Transport Services,Nothing But Padloc,25/09/2017,509.06,Purchase Card Statement Summary,151000 - Consultancy - Business
Solihull MBC,Resources,Corporate & Democratic Core,O2 UK,25/09/2017,32.00,Purchase Card Statement Summary,271699 - Information Communications Technology - Telecommunications
Solihull MBC,Children's Services & Skills,Children & Education Services,One Stop 2856,07/08/2017,125.00,Other Transport Costs,111200 - Catering - Food & Beverages
Solihull MBC,Children's Services & Skills,Children & Education Services,One Stop 2856,07/08/2017,218.75,Other Transport Costs,111200 - Catering - Food & Beverages
Solihull MBC,Adult Social Care,Adult Social Care,O'Neill's,25/09/2017,23.72,Purchase Card Statement Summary,261600 - Human Resources - Travel & Subsistence
Solihull MBC,Adult Social Care,Central Services to the Public,Paperchase,25/09/2017,12.05,Purchase Card Statement Summary,161000 - Domestic Goods - Commercial
Solihull MBC,Children's Services & Skills,Children & Education Services,Paypal *Adobesystem,25/09/2017,71.99,Purchase Card Statement Summary,271600 - Information Communication Technology - Software - Customised & Bespoke
Solihull MBC,Children's Services - DSG Central.,Children & Education Services,Paypal *Connectingw,25/09/2017,93.42,Purchase Card Statement Summary,151900 - Consultancy - Management
Solihull MBC,Children's Services - DSG Central.,Children & Education Services,Paypal *Connectingw,25/09/2017,98.34,Purchase Card Statement Summary,151900 - Consultancy - Management
Solihull MBC,Resources,Central Services to the Public,Paypal *Microneurop,25/08/2017,25.99,IT Equipment & Software,271600 - Information Communication Technology - Software - Customised & Bespoke
Solihull MBC,Resources,Central Services to the Public,Paypal *Microneurop,25/08/2017,27.99,IT Equipment & Software,271600 - Information Communication Technology - Software - Customised & Bespoke
Solihull MBC,Resources,Central Services to the Public,Paypal *Psapartsltd,24/08/2017,49.23,IT Equipment & Software,169999 - Domestic Goods - Not Elsewhere Classified
Solihull MBC,Children's Services & Skills,Children & Education Services,Paypal *Web Hosting,25/09/2017,35.00,Purchase Card Statement Summary,279999 - Information Communications Technology - Not Elsewhere Classified
Solihull MBC,Children's Services & Skills,Children & Education Services,Photobox Limited,25/09/2017,3.74,Purchase Card Statement Summary,349999 - Stationery - Not Elsewhere Classified
Solihull MBC,Children's Services & Skills,Children & Education Services,Photobox Limited,25/09/2017,4.04,Purchase Card Statement Summary,349999 - Stationery - Not Elsewhere Classified
Solihull MBC,Children's Services & Skills,Children & Education Services,Photobox Limited,25/09/2017,4.04,Purchase Card Statement Summary,349999 - Stationery - Not Elsewhere Classified
Solihull MBC,Children's Services & Skills,Children & Education Services,Photobox Limited,25/09/2017,4.04,Purchase Card Statement Summary,349999 - Stationery - Not Elsewhere Classified
Solihull MBC,Children's Services & Skills,Children & Education Services,Photobox Limited,25/09/2017,9.39,Purchase Card Statement Summary,349999 - Stationery - Not Elsewhere Classified
Solihull MBC,Adult Social Care,Adult Social Care,Pontins - Brean Sands,25/09/2017,13.90,Purchase Card Statement Summary,261000 - Human Resources - Accommodation
Solihull MBC,Resources,Children & Education Services,Post Office Counter,25/09/2017,7.80,Purchase Card Statement Summary,301200 - Mail Services - Postage
Solihull MBC,Resources,Children & Education Services,Post Office Counter,31/08/2017,14.52,Postage & Courier Services,301200 - Mail Services - Postage
Solihull MBC,Adult Social Care,Central Services to the Public,Post Office Shop,25/09/2017,457.99,Purchase Card Statement Summary,301200 - Mail Services - Postage
Solihull MBC,Adult Social Care,Adult Social Care,Poundland Ltd,25/09/2017,3.00,Purchase Card Statement Summary,169999 - Domestic Goods - Not Elsewhere Classified
Solihull MBC,Children's Services & Skills,Children & Education Services,Poundland Ltd,25/09/2017,19.00,Purchase Card Statement Summary,169999 - Domestic Goods - Not Elsewhere Classified
Solihull MBC,Adult Social Care,Adult Social Care,Poundland Ltd 1713,25/09/2017,4.00,Purchase Card Statement Summary,169999 - Domestic Goods - Not Elsewhere Classified
Solihull MBC,Adult Social Care,Adult Social Care,Realcare,25/09/2017,60.00,Purchase Card Statement Summary,311300 - Healthcare - Equipment
Solihull MBC,Adult Social Care,Adult Social Care,Red Lion,10/08/2017,9.98,Clients Expenses,261600 - Human Resources - Travel & Subsistence
Solihull MBC,Adult Social Care,Adult Social Care,Reeds Arms,25/09/2017,8.60,Purchase Card Statement Summary,261600 - Human Resources - Travel & Subsistence
Solihull MBC,Adult Social Care,Adult Social Care,Reeds Arms,25/09/2017,16.50,Purchase Card Statement Summary,261600 - Human Resources - Travel & Subsistence
Solihull MBC,Managed Growth and Communities - HRA,Housing Revenue Account,Riba Enterprises Ltd,25/09/2017,136.76,General Debtors,171114 - Education - Literature
Solihull MBC,Adult Social Care,Central Services to the Public,Robert Dyas Holdng Ltd,25/09/2017,4.58,Purchase Card Statement Summary,101400 - Building Construction Materials - General Materials
Solihull MBC,Resources,Central Services to the Public,Robert Dyas Holdng Ltd,25/09/2017,14.99,Purchase Card Statement Summary,101400 - Building Construction Materials - General Materials
Solihull MBC,Managed Growth and Communities,Highways & Transport Services,RS Components,25/09/2017,330.48,Purchase Card Statement Summary,101100 - Building Construction Materials - Electrical
Solihull MBC,Adult Social Care,Adult Social Care,Rwb380-705,25/09/2017,2.00,Purchase Card Statement Summary,261000 - Human Resources - Accommodation
Solihull MBC,Resources,Children & Education Services,Safelincs,25/09/2017,46.43,Purchase Card Statement Summary,161100 - Domestic Goods - Industrial
Solihull MBC,Resources,Children & Education Services,Safelincs,25/09/2017,199.18,Purchase Card Statement Summary,161100 - Domestic Goods - Industrial
Solihull MBC,Adult Social Care,Adult Social Care,Sainsbury's S/Mkt,21/08/2017,2.80,Clients Expenses,111200 - Catering - Food & Beverages
Solihull MBC,Adult Social Care,Adult Social Care,Sainsbury's S/Mkt,07/08/2017,32.15,Cleaning,111200 - Catering - Food & Beverages
Solihull MBC,Resources,Children & Education Services,Sainsbury's S/Mkt,23/08/2017,46.59,Catering Provisions,111200 - Catering - Food & Beverages
Solihull MBC,Adult Social Care,Adult Social Care,Sainsbury's S/Mkt,28/08/2017,50.75,Cleaning,111200 - Catering - Food & Beverages
Solihull MBC,Adult Social Care,Adult Social Care,Sainsburys S/Mkts,10/08/2017,5.90,Catering Provisions,111200 - Catering - Food & Beverages
Solihull MBC,Adult Social Care,Adult Social Care,Sainsburys S/Mkts,23/08/2017,7.15,Catering Provisions,111200 - Catering - Food & Beverages
Solihull MBC,Adult Social Care,Adult Social Care,Sainsburys S/Mkts,24/08/2017,9.83,Catering Provisions,111200 - Catering - Food & Beverages
Solihull MBC,Resources,Children & Education Services,Sainsburys S/Mkts,08/08/2017,28.05,Catering Provisions,111200 - Catering - Food & Beverages
Solihull MBC,Adult Social Care,Adult Social Care,Sainsburys S/Mkts,08/08/2017,34.95,Furniture & Equipment,111200 - Catering - Food & Beverages
Solihull MBC,Adult Social Care,Adult Social Care,Sainsburys S/Mkts,08/08/2017,35.00,Catering Provisions,111200 - Catering - Food & Beverages
Solihull MBC,Adult Social Care,Adult Social Care,Sainsburys S/Mkts,21/08/2017,38.50,Cleaning,111200 - Catering - Food & Beverages
Solihull MBC,Adult Social Care,Adult Social Care,Sainsbury's Smkt,25/09/2017,11.30,Purchase Card Statement Summary,111200 - Catering - Food & Beverages
Solihull MBC,Adult Social Care,Adult Social Care,Sainsbury's Smkt,25/09/2017,57.50,Purchase Card Statement Summary,111200 - Catering - Food & Beverages
Solihull MBC,Adult Social Care,Adult Social Care,Sainsbury's Smkt,25/09/2017,60.88,Purchase Card Statement Summary,111200 - Catering - Food & Beverages
Solihull MBC,Adult Social Care,Adult Social Care,Sainsbury's Smkt,25/09/2017,75.60,Purchase Card Statement Summary,111200 - Catering - Food & Beverages
Solihull MBC,Resources,Children & Education Services,Sainsburys Smkts,25/09/2017,12.65,Purchase Card Statement Summary,111200 - Catering - Food & Beverages
Solihull MBC,Adult Social Care,Adult Social Care,Sainsburys Smkts,25/09/2017,13.75,Purchase Card Statement Summary,111200 - Catering - Food & Beverages
Solihull MBC,Adult Social Care,Adult Social Care,Sainsburys Smkts,25/09/2017,13.80,Purchase Card Statement Summary,111200 - Catering - Food & Beverages
Solihull MBC,Adult Social Care,Adult Social Care,Sainsburys Smkts,25/09/2017,14.85,Purchase Card Statement Summary,111200 - Catering - Food & Beverages
Solihull MBC,Adult Social Care,Adult Social Care,Sainsburys Smkts,25/09/2017,17.99,Purchase Card Statement Summary,111200 - Catering - Food & Beverages
Solihull MBC,Adult Social Care,Adult Social Care,Sainsburys Smkts,25/09/2017,40.65,Purchase Card Statement Summary,111200 - Catering - Food & Beverages
Solihull MBC,Adult Social Care,Adult Social Care,Sainsburys Smkts,25/09/2017,43.63,Purchase Card Statement Summary,111200 - Catering - Food & Beverages
Solihull MBC,Adult Social Care,Adult Social Care,Sainsburys Smkts,25/09/2017,47.00,Purchase Card Statement Summary,111200 - Catering - Food & Beverages
Solihull MBC,Adult Social Care,Adult Social Care,Sainsburys Smkts,25/09/2017,49.13,Purchase Card Statement Summary,111200 - Catering - Food & Beverages
Solihull MBC,Adult Social Care,Adult Social Care,Sainsburys Smkts,25/09/2017,63.69,Purchase Card Statement Summary,111200 - Catering - Food & Beverages
Solihull MBC,Adult Social Care,Adult Social Care,Saracens Head,25/09/2017,34.75,Purchase Card Statement Summary,261600 - Human Resources - Travel & Subsistence
Solihull MBC,Adult Social Care,Adult Social Care,Saracens Head,25/09/2017,35.16,Purchase Card Statement Summary,261600 - Human Resources - Travel & Subsistence
Solihull MBC,Adult Social Care,Adult Social Care,Saracens Head,25/09/2017,35.53,Purchase Card Statement Summary,261600 - Human Resources - Travel & Subsistence
Solihull MBC,Children's Services & Skills,Children & Education Services,Screwfix Direct,25/09/2017,129.99,Purchase Card Statement Summary,102500 - Building Construction Materials - Timber
Solihull MBC,Adult Social Care,Adult Social Care,Seagull Fish Bar,25/09/2017,51.30,Purchase Card Statement Summary,261600 - Human Resources - Travel & Subsistence
Solihull MBC,Children's Services & Skills,Children & Education Services,SMBC� Revenues - C,25/09/2017,25.00,Purchase Card Statement Summary,151900 - Consultancy - Management
Solihull MBC,Adult Social Care,Adult Social Care,Solihull MBC,16/08/2017,18.00,Clients Expenses,151900 - Consultancy - Management
Solihull MBC,Managed Growth and Communities,Highways & Transport Services,Solihull Station T/O,09/08/2017,5.60,Car Allowances: Officers,261600 - Human Resources - Travel & Subsistence
Solihull MBC,Children's Services - DSG Central.,Children & Education Services,SP� Down Syndrome Edu,25/09/2017,180.00,Purchase Card Statement Summary,349999 - Stationery - Not Elsewhere Classified
Solihull MBC,Adult Social Care,Adult Social Care,SP� Sparks Warehouse,25/09/2017,11.49,Purchase Card Statement Summary,101100 - Building Construction Materials - Electrical
Solihull MBC,Adult Social Care,Adult Social Care,Spirit1468Drumandmonke,17/08/2017,9.57,Clients Expenses,261600 - Human Resources - Travel & Subsistence
Solihull MBC,Adult Social Care,Adult Social Care,Spirit1468Drumandmonke,15/08/2017,15.07,Clients Expenses,261600 - Human Resources - Travel & Subsistence
Solihull MBC,Adult Social Care,Adult Social Care,SUK Retail Ltd,16/08/2017,6.72,General Office Expenses,341100 - Stationery - Sundries
Solihull MBC,Resources,Children & Education Services,SUK Retail Ltd,25/09/2017,12.99,Purchase Card Statement Summary,341100 - Stationery - Sundries
Solihull MBC,Adult Social Care,Adult Social Care,SUK Retail Ltd,25/09/2017,13.38,Purchase Card Statement Summary,341100 - Stationery - Sundries
Solihull MBC,Adult Social Care,Adult Social Care,SUK Retail Ltd,25/09/2017,16.25,Purchase Card Statement Summary,341100 - Stationery - Sundries
Solihull MBC,Adult Social Care,Adult Social Care,Television Aerial Comp,25/09/2017,390.00,Purchase Card Statement Summary,229999 - Healthcare - Not Elsewhere Classified
Solihull MBC,Children's Services - DSG Central.,Children & Education Services,Tesco - Seller_Ist_1_2401,25/09/2017,21.98,Purchase Card Statement Summary,161000 - Domestic Goods - Commercial
Solihull MBC,Children's Services - DSG Central.,Children & Education Services,Tesco - Seller_Ist_1_2401,25/09/2017,149.99,Purchase Card Statement Summary,161000 - Domestic Goods - Commercial
Solihull MBC,Children's Services - DSG Central.,Children & Education Services,Tesco Direct,25/09/2017,155.95,Purchase Card Statement Summary,161000 - Domestic Goods - Commercial
Solihull MBC,Adult Social Care,Adult Social Care,Tesco Store 2785,07/08/2017,3.00,Catering Provisions,111200 - Catering - Food & Beverages
Solihull MBC,Adult Social Care,Adult Social Care,Tesco Store 2785,21/08/2017,8.62,Cleaning,111200 - Catering - Food & Beverages
Solihull MBC,Adult Social Care,Adult Social Care,Tesco Store 2785,07/08/2017,13.75,Cleaning,111200 - Catering - Food & Beverages
Solihull MBC,Adult Social Care,Adult Social Care,Tesco Store 2785,25/09/2017,35.24,Purchase Card Statement Summary,111200 - Catering - Food & Beverages
Solihull MBC,Adult Social Care,Adult Social Care,Tesco Store 2785,07/08/2017,50.99,Catering Provisions,111200 - Catering - Food & Beverages
Solihull MBC,Adult Social Care,Adult Social Care,Tesco Store 2785,28/08/2017,62.30,Catering Provisions,111200 - Catering - Food & Beverages
Solihull MBC,Adult Social Care,Adult Social Care,Tesco Store 2785,21/08/2017,79.14,Catering Provisions,111200 - Catering - Food & Beverages
Solihull MBC,Adult Social Care,Adult Social Care,Tesco Store 2785,14/08/2017,85.47,Catering Provisions,111200 - Catering - Food & Beverages
Solihull MBC,Adult Social Care,Adult Social Care,Tesco Store 3084,25/09/2017,42.30,Purchase Card Statement Summary,111200 - Catering - Food & Beverages
Solihull MBC,Adult Social Care,Adult Social Care,Tesco Store 3188,11/08/2017,0.50,Furniture & Equipment,111200 - Catering - Food & Beverages
Solihull MBC,Adult Social Care,Adult Social Care,Tesco Store 3188,21/08/2017,2.71,Furniture & Equipment,111200 - Catering - Food & Beverages
Solihull MBC,Adult Social Care,Adult Social Care,Tesco Store 3188,14/08/2017,3.00,General Office Expenses,111200 - Catering - Food & Beverages
Solihull MBC,Adult Social Care,Adult Social Care,Tesco Store 3188,14/08/2017,7.50,Catering Provisions,111200 - Catering - Food & Beverages
Solihull MBC,Adult Social Care,Adult Social Care,Tesco Store 3188,25/09/2017,8.00,Purchase Card Statement Summary,111200 - Catering - Food & Beverages
Solihull MBC,Adult Social Care,Adult Social Care,Tesco Store 3188,21/08/2017,8.54,Catering Provisions,111200 - Catering - Food & Beverages
Solihull MBC,Adult Social Care,Adult Social Care,Tesco Store 3188,28/08/2017,9.16,Purchase Card Statement Summary,111200 - Catering - Food & Beverages
Solihull MBC,Adult Social Care,Adult Social Care,Tesco Store 3188,07/08/2017,9.93,Catering Provisions,111200 - Catering - Food & Beverages
Solihull MBC,Adult Social Care,Adult Social Care,Tesco Store 3188,25/09/2017,10.45,Purchase Card Statement Summary,111200 - Catering - Food & Beverages
Solihull MBC,Adult Social Care,Adult Social Care,Tesco Store 3188,04/08/2017,13.33,Furniture & Equipment,111200 - Catering - Food & Beverages
Solihull MBC,Adult Social Care,Adult Social Care,Tesco Store 3188,28/08/2017,13.33,Furniture & Equipment,111200 - Catering - Food & Beverages
Solihull MBC,Adult Social Care,Adult Social Care,Tesco Store 3188,25/09/2017,14.00,Purchase Card Statement Summary,111200 - Catering - Food & Beverages
Solihull MBC,Adult Social Care,Adult Social Care,Tesco Store 3188,26/08/2017,14.56,Catering Provisions,111200 - Catering - Food & Beverages
Solihull MBC,Adult Social Care,Adult Social Care,Tesco Store 3188,25/09/2017,15.40,Purchase Card Statement Summary,111200 - Catering - Food & Beverages
Solihull MBC,Adult Social Care,Adult Social Care,Tesco Store 3188,11/08/2017,15.95,Catering Provisions,111200 - Catering - Food & Beverages
Solihull MBC,Adult Social Care,Adult Social Care,Tesco Store 3188,14/08/2017,16.96,Cleaning,111200 - Catering - Food & Beverages
Solihull MBC,Adult Social Care,Adult Social Care,Tesco Store 3188,21/08/2017,17.67,Cleaning,111200 - Catering - Food & Beverages
Solihull MBC,Adult Social Care,Adult Social Care,Tesco Store 3188,24/08/2017,18.33,Furniture & Equipment,111200 - Catering - Food & Beverages
Solihull MBC,Adult Social Care,Adult Social Care,Tesco Store 3188,14/08/2017,19.95,Cleaning,111200 - Catering - Food & Beverages
Solihull MBC,Adult Social Care,Adult Social Care,Tesco Store 3188,24/08/2017,20.09,Catering Provisions,111200 - Catering - Food & Beverages
Solihull MBC,Adult Social Care,Adult Social Care,Tesco Store 3188,25/09/2017,22.15,Purchase Card Statement Summary,111200 - Catering - Food & Beverages
Solihull MBC,Adult Social Care,Adult Social Care,Tesco Store 3188,07/08/2017,25.92,Cleaning,111200 - Catering - Food & Beverages
Solihull MBC,Adult Social Care,Adult Social Care,Tesco Store 3188,15/08/2017,26.54,Catering Provisions,111200 - Catering - Food & Beverages
Solihull MBC,Adult Social Care,Adult Social Care,Tesco Store 3188,04/08/2017,26.63,Catering Provisions,111200 - Catering - Food & Beverages
Solihull MBC,Adult Social Care,Adult Social Care,Tesco Store 3188,28/08/2017,27.67,Cleaning,111200 - Catering - Food & Beverages
Solihull MBC,Adult Social Care,Adult Social Care,Tesco Store 3188,25/09/2017,29.60,Purchase Card Statement Summary,111200 - Catering - Food & Beverages
Solihull MBC,Adult Social Care,Adult Social Care,Tesco Store 3188,25/09/2017,33.40,Purchase Card Statement Summary,111200 - Catering - Food & Beverages
Solihull MBC,Adult Social Care,Adult Social Care,Tesco Store 3188,25/09/2017,40.98,Purchase Card Statement Summary,111200 - Catering - Food & Beverages
Solihull MBC,Adult Social Care,Adult Social Care,Tesco Store 3188,11/08/2017,41.52,Catering Provisions,111200 - Catering - Food & Beverages
Solihull MBC,Adult Social Care,Adult Social Care,Tesco Store 3188,25/09/2017,41.70,Purchase Card Statement Summary,111200 - Catering - Food & Beverages
Solihull MBC,Adult Social Care,Adult Social Care,Tesco Store 3188,25/09/2017,44.57,Purchase Card Statement Summary,111200 - Catering - Food & Beverages
Solihull MBC,Adult Social Care,Adult Social Care,Tesco Store 3188,25/09/2017,53.22,Purchase Card Statement Summary,111200 - Catering - Food & Beverages
Solihull MBC,Adult Social Care,Adult Social Care,Tesco Store 3188,07/08/2017,76.63,Catering Provisions,111200 - Catering - Food & Beverages
Solihull MBC,Adult Social Care,Adult Social Care,Tesco Store 3188,25/09/2017,82.10,Purchase Card Statement Summary,111200 - Catering - Food & Beverages
Solihull MBC,Adult Social Care,Adult Social Care,Tesco Store 3188,14/08/2017,87.45,Catering Provisions,111200 - Catering - Food & Beverages
Solihull MBC,Adult Social Care,Adult Social Care,Tesco Store 3188,25/09/2017,91.61,Purchase Card Statement Summary,111200 - Catering - Food & Beverages
Solihull MBC,Adult Social Care,Adult Social Care,Tesco Store 3188,28/08/2017,93.25,Catering Provisions,111200 - Catering - Food & Beverages
Solihull MBC,Adult Social Care,Adult Social Care,Tesco Store 3188,21/08/2017,96.77,Catering Provisions,111200 - Catering - Food & Beverages
Solihull MBC,Adult Social Care,Adult Social Care,Tesco Store 3188,26/08/2017,99.77,Catering Provisions,111200 - Catering - Food & Beverages
Solihull MBC,Adult Social Care,Adult Social Care,Tesco Store 3188,25/09/2017,106.14,Purchase Card Statement Summary,111200 - Catering - Food & Beverages
Solihull MBC,Adult Social Care,Adult Social Care,Tesco Store 3188,04/08/2017,122.22,Catering Provisions,111200 - Catering - Food & Beverages
Solihull MBC,Adult Social Care,Adult Social Care,Tesco Store 3188,20/08/2017,157.31,Catering Provisions,111200 - Catering - Food & Beverages
Solihull MBC,Adult Social Care,Adult Social Care,Tesco Store 3188,12/08/2017,160.77,Catering Provisions,111200 - Catering - Food & Beverages
Solihull MBC,Adult Social Care,Adult Social Care,Tesco Stores 2325,18/08/2017,24.98,Catering Provisions,111200 - Catering - Food & Beverages
Solihull MBC,Adult Social Care,Adult Social Care,Tesco Stores 2515,25/09/2017,14.20,Purchase Card Statement Summary,111200 - Catering - Food & Beverages
Solihull MBC,Adult Social Care,Adult Social Care,Tesco Stores 2624,25/09/2017,11.35,Purchase Card Statement Summary,111200 - Catering - Food & Beverages
Solihull MBC,Adult Social Care,Adult Social Care,Tesco Stores 2785,19/08/2017,11.17,Catering Provisions,111200 - Catering - Food & Beverages
Solihull MBC,Children's Services - DSG Central.,Children & Education Services,Tesco-Seller_Ist_1_2401,25/09/2017,37.99,Purchase Card Statement Summary,161000 - Domestic Goods - Commercial
Solihull MBC,Resources,Children & Education Services,Tesco-Stores 3188,25/09/2017,4.00,Purchase Card Statement Summary,111200 - Catering - Food & Beverages
Solihull MBC,Resources,Children & Education Services,Tesco-Stores 3188,03/08/2017,11.08,Catering Provisions,111200 - Catering - Food & Beverages
Solihull MBC,Resources,Children & Education Services,Tesco-Stores 3188,09/08/2017,13.53,Catering Provisions,111200 - Catering - Food & Beverages
Solihull MBC,Adult Social Care,Adult Social Care,Tesco-Stores 6463,30/08/2017,23.81,Catering Provisions,111200 - Catering - Food & Beverages
Solihull MBC,Adult Social Care,Adult Social Care,The Cann Office Hotel,30/08/2017,40.00,Clients Expenses,261600 - Human Resources - Travel & Subsistence
Solihull MBC,Adult Social Care,Corporate & Democratic Core,The Chiltern Rlywy,25/09/2017,4.30,Purchase Card Statement Summary,261600 - Human Resources - Travel & Subsistence
Solihull MBC,Managed Growth and Communities,Highways & Transport Services,The Chiltern Rlywy,25/09/2017,5.60,Purchase Card Statement Summary,261600 - Human Resources - Travel & Subsistence
Solihull MBC,Adult Social Care,Corporate & Democratic Core,The Chiltern Rlywy,25/09/2017,5.60,Purchase Card Statement Summary,261600 - Human Resources - Travel & Subsistence
Solihull MBC,Adult Social Care,Adult Social Care,The Farmhouse Cafe,25/09/2017,17.16,Purchase Card Statement Summary,261600 - Human Resources - Travel & Subsistence
Solihull MBC,Children's Services & Skills,Children & Education Services,The Home Office,25/09/2017,72.00,Purchase Card Statement Summary,209999 - Financial Services - Not Elsewhere Classified
Solihull MBC,Children's Services & Skills,Children & Education Services,The Post Office,25/09/2017,1.75,Purchase Card Statement Summary,301200 - Mail Services - Postage
Solihull MBC,Children's Services & Skills,Children & Education Services,The Post Office,15/08/2017,6.45,Clients Expenses,301200 - Mail Services - Postage
Solihull MBC,Children's Services & Skills,Children & Education Services,The Post Office,08/08/2017,17.55,General Office Expenses,301200 - Mail Services - Postage
Solihull MBC,Adult Social Care,Adult Social Care,The Post Office,07/08/2017,31.20,General Office Expenses,301200 - Mail Services - Postage
Solihull MBC,Children's Services & Skills,Children & Education Services,The Post Office,10/08/2017,65.00,General Office Expenses,301200 - Mail Services - Postage
Solihull MBC,Children's Services & Skills,Children & Education Services,The Post Office,25/09/2017,65.00,Purchase Card Statement Summary,301200 - Mail Services - Postage
Solihull MBC,Children's Services & Skills,Children & Education Services,The Post Office,25/09/2017,68.65,Purchase Card Statement Summary,301200 - Mail Services - Postage
Solihull MBC,Adult Social Care,Adult Social Care,The Scarlett Ribbo,25/09/2017,5.00,Purchase Card Statement Summary,261600 - Human Resources - Travel & Subsistence
Solihull MBC,Adult Social Care,Central Services to the Public,The Works,25/09/2017,6.00,Purchase Card Statement Summary,169999 - Domestic Goods - Not Elsewhere Classified
Solihull MBC,Resources,Children & Education Services,Thetillrollwarehou,25/09/2017,35.40,Purchase Card Statement Summary,341100 - Stationery - Sundries
Solihull MBC,Adult Social Care,Cultural & Related Services,Times Newspapers Ltd,25/09/2017,30.33,Purchase Card Statement Summary,349999 - Stationery - Not Elsewhere Classified
Solihull MBC,Children's Services & Skills,Children & Education Services,Titan Storage,25/09/2017,121.00,Purchase Card Statement Summary,209999 - Financial Services - Not Elsewhere Classified
Solihull MBC,Managed Growth and Communities,Highways & Transport Services,Toolman Yardley Limited,07/08/2017,13.28,Materials,101400 - Building Construction Materials - General Materials
Solihull MBC,Managed Growth and Communities,Highways & Transport Services,Toolman Yardley Limited,25/09/2017,20.97,Purchase Card Statement Summary,101400 - Building Construction Materials - General Materials
Solihull MBC,Managed Growth and Communities - HRA,Housing Revenue Account,Trainline,25/09/2017,-124.20,General Debtors,261600 - Human Resources - Travel & Subsistence
Solihull MBC,Children's Services & Skills,Children & Education Services,Trainline,25/09/2017,15.35,Purchase Card Statement Summary,261600 - Human Resources - Travel & Subsistence
Solihull MBC,Children's Services & Skills,Children & Education Services,Trainline,25/09/2017,15.35,Purchase Card Statement Summary,261600 - Human Resources - Travel & Subsistence
Solihull MBC,Children's Services & Skills,Children & Education Services,Trainline,25/09/2017,17.29,Purchase Card Statement Summary,261600 - Human Resources - Travel & Subsistence
Solihull MBC,Children's Services & Skills,Children & Education Services,Trainline,25/09/2017,29.94,Purchase Card Statement Summary,261600 - Human Resources - Travel & Subsistence
Solihull MBC,Children's Services & Skills,Children & Education Services,Trainline,25/09/2017,33.81,Purchase Card Statement Summary,261600 - Human Resources - Travel & Subsistence
Solihull MBC,Children's Services & Skills,Children & Education Services,Trainline,25/09/2017,55.08,Purchase Card Statement Summary,261600 - Human Resources - Travel & Subsistence
Solihull MBC,Children's Services & Skills,Children & Education Services,Trainline,25/09/2017,69.77,Purchase Card Statement Summary,261600 - Human Resources - Travel & Subsistence
Solihull MBC,Children's Services & Skills,Children & Education Services,Trainline,25/09/2017,79.66,Purchase Card Statement Summary,261600 - Human Resources - Travel & Subsistence
Solihull MBC,Children's Services & Skills,Children & Education Services,Trainline,25/09/2017,160.75,Purchase Card Statement Summary,261600 - Human Resources - Travel & Subsistence
Solihull MBC,Children's Services & Skills,Children & Education Services,Trainline,25/09/2017,172.38,Purchase Card Statement Summary,261600 - Human Resources - Travel & Subsistence
Solihull MBC,Children's Services & Skills,Children & Education Services,Turpin44(0)01767604800,25/09/2017,104.52,Purchase Card Statement Summary,161000 - Domestic Goods - Commercial
Solihull MBC,Children's Services & Skills,Children & Education Services,Tvlicensing.co.uk,22/08/2017,147.00,General Office Expenses,151900 - Consultancy - Management
Solihull MBC,Children's Services & Skills,Children & Education Services,Tvlicensing.co.uk,25/09/2017,147.00,Purchase Card Statement Summary,151900 - Consultancy - Management
Solihull MBC,Adult Social Care,Adult Social Care,UPT LPS Warwick Castle C,25/09/2017,10.00,Purchase Card Statement Summary,261600 - Human Resources - Travel & Subsistence
Solihull MBC,Adult Social Care,Cultural & Related Services,Vistapr*Vistaprint.com,25/09/2017,46.77,Purchase Card Statement Summary,349999 - Stationery - Not Elsewhere Classified
Solihull MBC,Adult Social Care,Adult Social Care,W M Morrison,29/08/2017,6.84,Cleaning,111200 - Catering - Food & Beverages
Solihull MBC,Resources,Central Services to the Public,W M Morrison,25/09/2017,11.50,Purchase Card Statement Summary,111200 - Catering - Food & Beverages
Solihull MBC,Adult Social Care,Adult Social Care,W M Morrisons,11/08/2017,3.50,Catering Provisions,111200 - Catering - Food & Beverages
Solihull MBC,Resources,Corporate & Democratic Core,W M Morrisons,09/08/2017,10.00,General Office Expenses,111200 - Catering - Food & Beverages
Solihull MBC,Adult Social Care,Adult Social Care,W M Morrisons,15/08/2017,17.81,Catering Provisions,111200 - Catering - Food & Beverages
Solihull MBC,Children's Services & Skills,Children & Education Services,Walsall Carpets,25/09/2017,300.00,Purchase Card Statement Summary,101300 - Building Construction Materials - Floor Coverings
Solihull MBC,Adult Social Care,Adult Social Care,Warner Bros Studio,15/08/2017,74.00,Clients Expenses,291100 - Arts & Leisure Services - Museums & Arts
Solihull MBC,Adult Social Care,Cultural & Related Services,Warners Publications PLC,25/09/2017,48.00,Purchase Card Statement Summary,209999 - Financial Services - Not Elsewhere Classified
Solihull MBC,Adult Social Care,Adult Social Care,Warwick Castle,25/09/2017,8.00,Purchase Card Statement Summary,291100 - Arts & Leisure Services - Museums & Arts
Solihull MBC,Managed Growth and Communities,Planning & Development Services,West Coast Trains,31/08/2017,3.10,Car Allowances: Officers,261600 - Human Resources - Travel & Subsistence
Solihull MBC,Managed Growth and Communities,Planning & Development Services,West Coast Trains,24/08/2017,4.80,Car Allowances: Officers,261600 - Human Resources - Travel & Subsistence
Solihull MBC,Managed Growth and Communities,Planning & Development Services,West Coast Trains,16/08/2017,6.90,Car Allowances: Officers,261600 - Human Resources - Travel & Subsistence
Solihull MBC,Managed Growth and Communities,Highways & Transport Services,West Coast Trains,25/09/2017,7.20,Purchase Card Statement Summary,261600 - Human Resources - Travel & Subsistence
Solihull MBC,Managed Growth and Communities,Planning & Development Services,West Coast Trains - En,14/08/2017,6.90,Car Allowances: Officers,261600 - Human Resources - Travel & Subsistence
Solihull MBC,Managed Growth and Communities,Planning & Development Services,West Coast Trains - En,08/08/2017,6.90,Car Allowances: Officers,261600 - Human Resources - Travel & Subsistence
Solihull MBC,Managed Growth and Communities,Planning & Development Services,West Coast Trains - En,22/08/2017,6.90,Car Allowances: Officers,261600 - Human Resources - Travel & Subsistence
Solihull MBC,Adult Social Care,Adult Social Care,White Swan,23/08/2017,5.54,Clients Expenses,261600 - Human Resources - Travel & Subsistence
Solihull MBC,Adult Social Care,Adult Social Care,White Swan,10/08/2017,7.08,Clients Expenses,261600 - Human Resources - Travel & Subsistence
Solihull MBC,Adult Social Care,Adult Social Care,White Swan,10/08/2017,7.32,Clients Expenses,261600 - Human Resources - Travel & Subsistence
Solihull MBC,Adult Social Care,Adult Social Care,Wilko Retail Limit,05/08/2017,3.50,Furniture & Equipment,169999 - Domestic Goods - Not Elsewhere Classified
Solihull MBC,Adult Social Care,Adult Social Care,Wilko Retail Limit,29/08/2017,3.90,General Office Expenses,169999 - Domestic Goods - Not Elsewhere Classified
Solihull MBC,Adult Social Care,Adult Social Care,Wilko Retail Limit,18/08/2017,6.35,Furniture & Equipment,169999 - Domestic Goods - Not Elsewhere Classified
Solihull MBC,Adult Social Care,Adult Social Care,Wilko Retail Limit,03/08/2017,8.33,Furniture & Equipment,169999 - Domestic Goods - Not Elsewhere Classified
Solihull MBC,Adult Social Care,Adult Social Care,Wilko Retail Limit,25/09/2017,20.00,Purchase Card Statement Summary,169999 - Domestic Goods - Not Elsewhere Classified
Solihull MBC,Public Health & Commissioning,Central Services to the Public,Wilko Retail Limit,18/08/2017,20.83,Officers Expenses,169999 - Domestic Goods - Not Elsewhere Classified
Solihull MBC,Adult Social Care,Adult Social Care,Wilko Retail Limit,25/09/2017,32.00,Purchase Card Statement Summary,169999 - Domestic Goods - Not Elsewhere Classified
Solihull MBC,Children's Services & Skills,Children & Education Services,Wilko Retail Limit,25/09/2017,45.90,Purchase Card Statement Summary,169999 - Domestic Goods - Not Elsewhere Classified
Solihull MBC,Adult Social Care,Adult Social Care,Wm Morrison Food.com,25/09/2017,73.27,Purchase Card Statement Summary,111200 - Catering - Food & Beverages
Solihull MBC,Adult Social Care,Adult Social Care,Wm Morrison Food.com,25/09/2017,132.73,Purchase Card Statement Summary,111200 - Catering - Food & Beverages
Solihull MBC,Adult Social Care,Adult Social Care,Wm Morrison Food.com,25/09/2017,148.54,Purchase Card Statement Summary,111200 - Catering - Food & Beverages
Solihull MBC,Resources,Children & Education Services,Wm Morrisons,25/09/2017,1.64,Purchase Card Statement Summary,111200 - Catering - Food & Beverages
Solihull MBC,Resources,Children & Education Services,Wm Morrisons,25/09/2017,10.92,Purchase Card Statement Summary,111200 - Catering - Food & Beverages
Solihull MBC,Children's Services & Skills,Children & Education Services,WMSP,25/09/2017,29.60,Purchase Card Statement Summary,291300 - Arts & Leisure Services - Performing Arts
Solihull MBC,Adult Social Care,Adult Social Care,Wookey Hole,25/09/2017,28.50,Purchase Card Statement Summary,291100 - Arts & Leisure Services - Museums & Arts
Solihull MBC,Children's Services & Skills,Children & Education Services,Wordpress Jlbmqu222W,25/09/2017,250.00,Purchase Card Statement Summary,271600 - Information Communication Technology - Software - Customised & Bespoke
Solihull MBC,Managed Growth and Communities,Planning & Development Services,www.Aldercross.com,10/08/2017,281.88,Training,151900 - Consultancy - Management
Solihull MBC,Children's Services & Skills,Children & Education Services,www.argos.co.uk,25/09/2017,-55.91,Purchase Card Statement Summary,169999 - Domestic Goods - Not Elsewhere Classified
Solihull MBC,Children's Services & Skills,Children & Education Services,www.argos.co.uk,25/09/2017,12.13,Purchase Card Statement Summary,169999 - Domestic Goods - Not Elsewhere Classified
Solihull MBC,Children's Services & Skills,Children & Education Services,www.argos.co.uk,25/09/2017,55.91,Purchase Card Statement Summary,169999 - Domestic Goods - Not Elsewhere Classified
Solihull MBC,Children's Services & Skills,Children & Education Services,www.argos.co.uk,25/09/2017,123.94,Purchase Card Statement Summary,169999 - Domestic Goods - Not Elsewhere Classified
Solihull MBC,Children's Services & Skills,Children & Education Services,www.argos.co.uk,25/09/2017,198.94,Purchase Card Statement Summary,169999 - Domestic Goods - Not Elsewhere Classified
Solihull MBC,Children's Services & Skills,Children & Education Services,www.argos.co.uk,25/09/2017,239.99,Purchase Card Statement Summary,169999 - Domestic Goods - Not Elsewhere Classified
Solihull MBC,Children's Services & Skills,Children & Education Services,www.argos.co.uk,25/09/2017,255.95,Purchase Card Statement Summary,169999 - Domestic Goods - Not Elsewhere Classified
Solihull MBC,Children's Services & Skills,Children & Education Services,www.argos.co.uk,25/09/2017,292.45,Purchase Card Statement Summary,169999 - Domestic Goods - Not Elsewhere Classified
Solihull MBC,Adult Social Care,Cultural & Related Services,www.Cutplasticsheeting,25/09/2017,87.32,Purchase Card Statement Summary,109999 - Building Construction Materials - Not Elsewhere Classified
Solihull MBC,Adult Social Care,Cultural & Related Services,www.Discountbannerprin,25/09/2017,126.80,Purchase Card Statement Summary,349999 - Stationery - Not Elsewhere Classified
Solihull MBC,Adult Social Care,Cultural & Related Services,www.Gear4Music.com,25/09/2017,77.98,Purchase Card Statement Summary,291110 - Arts & Leisure Services - Professional Musical Instruments
Solihull MBC,Children's Services & Skills,Children & Education Services,www.Goape.co.uk,25/09/2017,58.00,Purchase Card Statement Summary,291400 - Arts & Leisure Services - Sport & Fitness
Solihull MBC,Managed Growth and Communities - HRA,Housing Revenue Account,www.Housing.org.uk,25/09/2017,945.00,General Debtors,209999 - Financial Services - Not Elsewhere Classified
Solihull MBC,Resources,Corporate & Democratic Core,www.ico.gov.uk,31/08/2017,35.00,Professional Fees,209999 - Financial Services - Not Elsewhere Classified
Solihull MBC,Resources,Corporate & Democratic Core,www.ico.gov.uk,31/08/2017,35.00,Professional Fees,209999 - Financial Services - Not Elsewhere Classified
Solihull MBC,Resources,Central Services to the Public,www.Labc.uk.com,17/08/2017,110.00,Training,151000 - Consultancy - Business
Solihull MBC,Managed Growth and Communities - HRA,Housing Revenue Account,www.Labc.uk.com,25/09/2017,264.00,General Debtors,151000 - Consultancy - Business
Solihull MBC,Children's Services & Skills,Children & Education Services,www.Medela.co.uk,25/09/2017,47.00,Purchase Card Statement Summary,161000 - Domestic Goods - Commercial
Solihull MBC,Managed Growth and Communities - HRA,Housing Revenue Account,www.Moneyclaim.gov,25/09/2017,35.00,General Debtors,209999 - Financial Services - Not Elsewhere Classified
Solihull MBC,Managed Growth and Communities - HRA,Housing Revenue Account,www.Moneyclaim.gov,25/09/2017,35.00,General Debtors,209999 - Financial Services - Not Elsewhere Classified
Solihull MBC,Managed Growth and Communities - HRA,Housing Revenue Account,www.Moneyclaim.gov,25/09/2017,60.00,General Debtors,209999 - Financial Services - Not Elsewhere Classified
Solihull MBC,Managed Growth and Communities - HRA,Housing Revenue Account,www.Moneyclaim.gov,25/09/2017,60.00,General Debtors,209999 - Financial Services - Not Elsewhere Classified
Solihull MBC,Managed Growth and Communities - HRA,Housing Revenue Account,www.Moneyclaim.gov,25/09/2017,60.00,General Debtors,209999 - Financial Services - Not Elsewhere Classified
Solihull MBC,Managed Growth and Communities - HRA,Housing Revenue Account,www.Moneyclaim.gov,25/09/2017,70.00,General Debtors,209999 - Financial Services - Not Elsewhere Classified
Solihull MBC,Managed Growth and Communities - HRA,Housing Revenue Account,www.Moneyclaim.gov,25/09/2017,105.00,General Debtors,209999 - Financial Services - Not Elsewhere Classified
Solihull MBC,Managed Growth and Communities - HRA,Housing Revenue Account,www.Moneyclaim.gov,25/09/2017,410.00,General Debtors,209999 - Financial Services - Not Elsewhere Classified
Solihull MBC,Adult Social Care,Adult Social Care,www.Nisbets.com,25/09/2017,29.97,Purchase Card Statement Summary,161000 - Domestic Goods - Commercial
Solihull MBC,Children's Services & Skills,Children & Education Services,www.Posturite.co.uk,25/09/2017,89.82,Purchase Card Statement Summary,211000 - Furniture & Soft Furnishings - Commercial Furniture
Solihull MBC,Adult Social Care,Cultural & Related Services,www.Private-Eye.co.uk,25/09/2017,34.00,Purchase Card Statement Summary,349999 - Stationery - Not Elsewhere Classified
Solihull MBC,Resources,Central Services to the Public,www.Ryman.co.uk,25/09/2017,49.99,Purchase Card Statement Summary,341100 - Stationery - Sundries
Solihull MBC,Adult Social Care,Cultural & Related Services,www.Subscription.co.uk,25/09/2017,24.99,Purchase Card Statement Summary,349999 - Stationery - Not Elsewhere Classified
Solihull MBC,Resources,Central Services to the Public,www.uk.insight.com,25/09/2017,32.02,Purchase Card Statement Summary,161000 - Domestic Goods - Commercial
Solihull MBC,Managed Growth and Communities,Highways & Transport Services,www.uk.RS-Online.C,17/08/2017,220.44,Other Contracted Services,101100 - Building Construction Materials - Electrical
Solihull MBC,Resources,Children & Education Services,www.Ukpos.com,25/09/2017,37.55,Purchase Card Statement Summary,341100 - Stationery - Sundries
Solihull MBC,Adult Social Care,Adult Social Care,www.Viking-Direct.co.u,07/08/2017,103.86,General Office Expenses,341100 - Stationery - Sundries
Solihull MBC,Children's Services & Skills,Children & Education Services,wwwlinkmakercouk,25/09/2017,396.90,Purchase Card Statement Summary,271600 - Information Communication Technology - Software - Customised & Bespoke
Solihull MBC,Adult Social Care,Adult Social Care,Yates Solihull,04/08/2017,6.87,Clients Expenses,261600 - Human Resources - Travel & Subsistence
Solihull MBC,Adult Social Care,Adult Social Care,Yates Solihull,25/09/2017,14.00,Purchase Card Statement Summary,261600 - Human Resources - Travel & Subsistence
